bitfinex-derivatives/quotes_ETHF0:USTF0_20260305
["timestamp","ask_amount","ask_price","bid_price","bid_amount"]
[1772676820184,1.80880347,2129.9,2129.7,7.11266422]
[1772676820386,1.32988347,2129.9,2129.7,7.11266422]
[1772676820591,13.82605796,2130.4,2129.8,7.34736422]
[1772676820786,0.67242347,2130.3,2129.8,7.34736422]
[1772676823292,6.655,2130.6,2129.8,7.34736422]
[1772676823592,13.83319863,2130.6,2129.8,7.34736422]
[1772676823792,7.17419863,2130.5,2129.8,7.34736422]
[1772676823989,7.17419863,2130.5,2129.8,0.2347]
[1772676824295,7.17889407,2130.5,2129.7,7.11266422]
[1772676824493,7.17889407,2130.5,2129.6,5.82772738]
[1772676824494,7.17419863,2130.3,2129.6,7.11266422]
[1772676825193,7.17419863,2130.3,2129.8,7.34736422]
[1772676825687,13.84119863,2130.2,2129.8,7.34736422]
[1772676825891,7.17419863,2130.1,2129.6,7.11266422]
[1772676826291,7.17419863,2130.1,2129.6,12.9403916]
[1772676826497,7.17419863,2130.1,2129.7,7.11266422]
[1772676826799,7.17419863,2130.0,2129.6,5.82772738]
[1772676827097,7.17419863,2130.0,2129.6,12.9403916]
[1772676827799,7.17419863,2130.0,2129.7,0.23471]
[1772676828297,7.17419863,2130.4,2129.7,7.34737422]
[1772676828498,15.07402815,2130.3,2129.8,7.11266422]
[1772676828890,8.39602815,2130.2,2129.8,7.11266422]
[1772676829088,8.40072359,2130.5,2129.9,8.05042878]
[1772676829291,15.08172359,2130.5,2129.9,8.05042878]
[1772676830101,8.39602815,2131.1,2130.3,7.81573878]
[1772676830301,8.39602815,2130.9,2130.3,7.81573878]
[1772676830692,15.08302815,2130.9,2130.3,7.81573878]
[1772676831200,8.40044063,2130.9,2130.3,7.81573878]
[1772676831396,8.40044063,2130.9,2130.4,7.81573878]
[1772676831601,0.00441248,2130.9,2130.4,7.81573878]
[1772676831997,0.00441248,2130.9,2130.3,5.82772738]
[1772676831998,0.00441248,2130.9,2130.5,13.45521178]
[1772676832198,0.00441248,2130.9,2130.7,7.81573878]
[1772676832394,0.00441248,2130.9,2130.8,5.639473]
[1772676833301,15.09202815,2131.3,2130.9,7.81573878]
[1772676833503,0.00441248,2131.2,2131.0,5.639473]
[1772676833703,0.00441248,2131.2,2130.9,7.81573878]
[1772676833905,8.40044063,2131.2,2131.0,5.63752285]
[1772676834098,8.40447113,2131.2,2131.0,0.00472759]
[1772676834301,8.40005865,2131.2,2130.7,7.81573878]
[1772676834501,8.40044063,2131.1,2130.8,5.63825097]
[1772676834699,0.00441248,2131.1,2130.9,5.63825097]
[1772676834900,0.00441248,2131.1,2131.0,5.63825097]
[1772676835311,0.0040305,2131.2,2131.0,5.64193032]
[1772676835510,2.67777272,2132.3,2131.1,13.45398975]
[1772676835511,8.39602815,2131.5,2131.1,13.45398975]
[1772676835706,8.39602815,2131.5,2131.2,5.63825097]
[1772676835912,8.39602815,2131.5,2131.0,0.00367935]
[1772676836110,8.39602815,2131.5,2131.1,5.63367771]
[1772676836412,8.39602815,2131.5,2131.0,0.00367935]
[1772676836612,8.39602815,2131.4,2131.0,0.00367935]
[1772676837007,8.39602815,2131.4,2130.3,7.81573878]
[1772676837312,8.39602815,2131.4,2130.1,13.87812616]
[1772676838001,8.39602815,2131.4,2130.1,13.88161436]
[1772676838210,8.39602815,2131.4,2130.1,8.05388698]
[1772676838420,8.39602815,2131.4,2130.1,13.88161436]
[1772676838714,8.39602815,2131.4,2130.2,7.81573878]
[1772676839309,8.39602815,2131.4,2130.2,13.64346616]
[1772676839513,8.39602815,2131.4,2130.2,7.81573878]
[1772676840409,8.39602815,2131.4,2130.3,7.81573878]
[1772676840811,6.724,2131.3,2130.4,7.81573878]
[1772676841117,6.72970691,2131.5,2130.8,7.81573878]
[1772676841512,15.12573506,2131.5,2130.8,7.81573878]
[1772676841911,8.39602815,2131.4,2130.8,7.81573878]
[1772676842118,8.39602815,2131.4,2130.6,7.81573878]
[1772676842317,8.39602815,2131.4,2130.5,5.82772738]
[1772676842615,8.39602815,2131.4,2130.2,8.05038878]
[1772676842808,6.731,2131.3,2130.2,8.05038878]
[1772676843014,8.39602815,2131.2,2130.3,7.81573878]
[1772676843211,6.732,2131.1,2130.3,7.81573878]
[1772676843418,15.12802815,2131.1,2130.3,7.81573878]
[1772676843618,8.39602815,2131.0,2130.3,7.81573878]
[1772676843821,15.13002815,2131.2,2130.5,7.81573878]
[1772676844015,8.39602815,2131.2,2130.5,7.81573878]
[1772676844221,15.13102815,2131.2,2130.5,7.81573878]
[1772676846220,8.29868837,2131.2,2130.7,7.81573878]
[1772676847324,6.745,2131.3,2130.7,7.81573878]
[1772676847619,15.14102815,2131.3,2130.7,7.81573878]
[1772676847826,8.39602815,2131.2,2130.6,7.81573878]
[1772676848427,8.39602815,2131.2,2130.8,7.81573878]
[1772676848428,6.749,2131.2,2130.8,7.81573878]
[1772676849023,0.00470691,2131.5,2130.8,7.81573878]
[1772676849024,15.14702815,2131.3,2130.8,7.81573878]
[1772676849224,15.14802815,2131.3,2130.8,7.81573878]
[1772676849430,8.39602815,2131.3,2130.8,7.81573878]
[1772676849724,15.14902815,2131.3,2130.8,7.81573878]
[1772676849924,8.39602815,2131.3,2130.8,7.81573878]
[1772676850124,15.15102815,2131.3,2130.8,7.81573878]
[1772676850326,6.755,2131.3,2130.8,7.81573878]
[1772676850525,8.40073506,2131.5,2130.8,7.81573878]
[1772676850725,15.15302815,2131.4,2130.8,7.81573878]
[1772676851021,8.40073506,2131.5,2131.0,7.81573878]
[1772676851219,0.00470691,2131.5,2131.0,7.81573878]
[1772676851418,9.0550066,2132.2,2131.8,7.81573878]
[1772676851624,0.18291845,2132.2,2131.8,7.81573878]
[1772676852320,0.18626183,2132.2,2131.8,7.81942185]
[1772676852520,1.83e-06,2132.2,2131.8,7.81942185]
[1772676852728,1.83e-06,2132.2,2132.0,7.81573878]
[1772676852928,1.83e-06,2132.2,2131.9,0.23447]
[1772676853116,1.83e-06,2132.2,2131.9,8.05020878]
[1772676853320,0.01186689,2132.9,2132.1,0.23445]
[1772676853623,0.01186689,2132.9,2132.2,7.81573878]
[1772676853826,0.01186689,2132.9,2132.4,7.81573878]
[1772676854018,8.40789504,2132.9,2132.1,7.81573878]
[1772676854217,0.01186689,2132.9,2132.3,7.81573878]
[1772676854418,1.49146046,2134.1,2132.5,7.81573878]
[1772676854419,8.39602815,2133.3,2132.5,7.81573878]
[1772676854623,15.16790652,2133.3,2132.5,7.81573878]
[1772676854825,8.39602815,2133.2,2132.5,7.81573878]
[1772676856125,6.77187837,2133.3,2132.5,7.81573878]
[1772676856126,0.00387837,2133.3,2132.5,7.81573878]
[1772676856434,8.49602815,2134.1,2133.1,7.81573878]
[1772676857034,8.49602815,2134.1,2132.5,6.977]
[1772676857230,8.49602815,2134.1,2132.6,7.81573878]
[1772676857231,8.39602815,2133.7,2132.6,7.81573878]
[1772676857534,8.39602815,2133.5,2132.6,7.81573878]
[1772676860323,8.39602815,2133.5,2132.4,7.55620146]
[1772676860928,8.39602815,2133.5,2132.2,7.55620146]
[1772676861130,7.50334597,2133.3,2132.0,7.55620146]
[1772676863328,7.50334597,2132.9,2131.8,7.55988453]
[1772676863529,6.789,2132.8,2131.8,7.79435453]
[1772676864135,6.791,2132.8,2131.8,7.79435453]
[1772676864937,14.29434597,2132.8,2131.8,7.79435453]
[1772676865328,7.50334597,2132.7,2131.8,7.79435453]
[1772676866635,7.50334597,2132.7,2131.8,0.00368307]
[1772676866835,7.50334597,2132.7,2131.4,7.65521025]
[1772676867030,7.50334597,2132.7,2131.2,7.65521025]
[1772676867835,7.50334597,2132.7,2131.2,7.65863244]
[1772676868237,7.50334597,2132.7,2131.2,0.00342219]
[1772676869335,7.72888423,2132.3,2131.2,0.00342219]
[1772676869529,7.72888423,2132.1,2131.2,0.00342219]
[1772676871139,7.72888423,2132.1,2130.9,7.65521025]
[1772676871342,7.72888423,2131.9,2130.7,7.65521025]
[1772676872345,7.72888423,2131.9,2130.7,0.00456596]
[1772676872548,7.72888423,2131.9,2130.7,7.65977621]
[1772676872945,7.72888423,2131.9,2130.7,0.00456596]
[1772676873850,7.72888423,2131.9,2130.7,7.65977621]
[1772676874049,7.72888423,2131.7,2130.7,7.65977621]
[1772676874243,7.72888423,2131.5,2130.7,7.65977621]
[1772676875252,7.72888423,2131.5,2130.7,0.00456596]
[1772676875552,7.72888423,2131.5,2130.7,7.65977621]
[1772676877544,3.15248682,2131.3,2130.2,7.65521025]
[1772676877748,6.826,2131.2,2130.2,7.65521025]
[1772676878046,3.15248682,2132.0,2130.4,7.65521025]
[1772676878249,6.57980419,2132.1,2130.6,7.65521025]
[1772676878250,3.15248682,2131.8,2130.6,7.65521025]
[1772676878447,9.98048682,2131.8,2130.8,7.65521025]
[1772676878651,9.98048682,2131.8,2130.6,0.00413995]
[1772676878652,4.09153123,2131.7,2131.0,7.65521025]
[1772676880348,6.828,2131.8,2131.0,7.65521025]
[1772676880548,3.8858739,2132.1,2131.0,7.65521025]
[1772676880748,3.8893395,2132.3,2131.2,7.65521025]
[1772676882750,3.8893395,2132.3,2131.6,7.65521025]
[1772676882751,0.0034656,2132.3,2131.6,7.65521025]
[1772676883348,0.0034656,2132.3,2131.7,7.65521025]
[1772676890149,3.8051347,2132.0,2131.3,7.98916071]
[1772676890350,3.78689581,2131.7,2130.9,7.98916071]
[1772676892458,3.52807794,2131.9,2130.9,8.22374071]
[1772676892658,3.52807794,2132.0,2130.9,8.22374071]
[1772676892858,3.52807794,2131.7,2131.0,7.98916071]
[1772676893055,3.52807794,2131.7,2131.0,15.07916071]
[1772676893258,3.52807794,2131.7,2131.0,7.98916071]
[1772676893649,2.67452332,2131.8,2131.0,7.98916071]
[1772676893852,3.39056917,2131.9,2131.0,7.98916071]
[1772676894052,3.91122235,2132.2,2131.0,7.98916071]
[1772676894053,2.67452332,2131.8,2131.0,7.98916071]
[1772676894253,3.39056917,2131.7,2131.0,7.98916071]
[1772676894752,3.37525378,2132.0,2131.2,7.98916071]
[1772676894955,3.37525378,2132.0,2131.3,7.98916071]
[1772676895555,5.34269352,2133.0,2132.3,7.98916071]
[1772676895860,14.58671412,2133.3,2132.3,7.98916071]
[1772676895861,7.25317222,2133.3,2132.3,7.98916071]
[1772676896462,7.55057644,2133.1,2132.3,7.9938653]
[1772676896756,7.55057644,2133.1,2132.3,0.00470459]
[1772676896961,7.55057644,2133.1,2132.3,7.9938653]
[1772676897656,7.55057644,2133.1,2132.1,7.105]
[1772676897856,0.37496019,2132.3,2131.5,7.98916071]
[1772676898654,7.33692294,2133.3,2131.5,7.99447736]
[1772676898655,0.36671632,2132.6,2131.5,7.99447736]
[1772676900766,6.863,2132.8,2131.5,8.22898736]
[1772676901263,2.67790436,2133.3,2131.8,9.27098729]
[1772676901264,6.94250395,2133.2,2131.8,9.27098729]
[1772676901466,0.00338104,2133.3,2132.1,9.03650729]
[1772676901664,0.06271864,2133.2,2132.1,9.03650729]
[1772676901868,0.06271864,2133.2,2132.3,9.03650729]
[1772676902970,0.05520847,2133.3,2132.3,9.03650729]
[1772676903269,0.05520847,2133.3,2132.4,8.9973695]
[1772676903866,0.00338104,2133.3,2132.4,8.9973695]
[1772676904070,0.00338104,2133.3,2132.4,9.2317695]
[1772676904968,0.00338104,2133.3,2132.6,8.99590643]
[1772676905965,0.00338104,2133.3,2132.8,8.5654802]
[1772676912272,0.97454374,2133.3,2132.6,8.50994294]
[1772676912676,0.00338104,2133.3,2132.6,8.50994294]
[1772676913780,1.01670381,2133.2,2132.0,8.4718868]
[1772676914080,0.00338104,2133.3,2132.1,8.4718868]
[1772676914575,2.67452332,2133.0,2132.3,8.4707076]
[1772676914782,1.00359868,2133.1,2132.3,8.4707076]
[1772676914976,0.00338104,2133.3,2132.5,8.4707076]
[1772676915779,0.00338104,2133.3,2132.6,8.46950571]
[1772676916083,7.86281968,2133.9,2132.6,8.46950571]
[1772676916778,0.98048339,2133.8,2132.6,8.46950571]
[1772676916978,0.98472128,2133.8,2132.6,8.46950571]
[1772676918384,1.07955577,2133.5,2132.8,8.40930044]
[1772676918683,1.08512322,2133.7,2132.8,8.40930044]
[1772676919982,0.00423789,2133.8,2132.8,8.40930044]
[1772676919983,3.74585991,2133.6,2132.8,8.40930044]
[1772676920282,1.07133659,2133.5,2132.8,8.40930044]
[1772676920880,1.07133659,2133.5,2132.6,8.40686016]
[1772676923384,1.02675284,2133.7,2132.7,8.40565904]
[1772676924180,0.1,2134.7,2132.9,8.41142265]
[1772676924379,0.1,2134.7,2133.5,8.41142265]
[1772676924582,1.08188785,2134.7,2133.7,8.41142265]
[1772676924881,0.1,2134.7,2133.8,8.41142265]
[1772676925280,0.1,2134.7,2133.8,8.41533831]
[1772676925281,0.10464142,2134.7,2133.8,8.41533831]
[1772676926186,0.10464142,2134.7,2133.9,8.41018379]
[1772676929485,2.67452332,2135.2,2133.9,8.41018379]
[1772676929788,1.51300974,2135.2,2134.1,8.49198687]
[1772676929979,1.51300974,2135.2,2134.2,8.49198687]
[1772676929980,1.51300974,2135.1,2134.2,8.49198687]
[1772676930585,1.37104865,2134.8,2134.2,8.49198687]
[1772676930785,1.37104865,2134.8,2133.9,8.49198687]
[1772676931589,2.67452332,2134.9,2133.8,8.49590253]
[1772676931590,1.35484233,2134.5,2133.8,8.49590253]
[1772676931791,8.20484233,2134.9,2133.8,8.49590253]
[1772676932185,8.20484233,2134.9,2133.9,8.49198687]
[1772676932490,2.67452332,2134.6,2133.8,0.00391566]
[1772676932686,1.22941067,2134.5,2133.8,0.00391566]
[1772676933089,1.22941067,2134.5,2133.4,8.49198687]
[1772676933288,2.67452332,2134.4,2133.4,8.49198687]
[1772676933486,1.21420251,2134.3,2133.4,8.49198687]
[1772676933994,1.21420251,2134.1,2133.4,0.00507216]
[1772676934294,6.847,2134.2,2133.4,8.49705903]
[1772676934687,1.0541911,2134.1,2133.4,8.49705903]
[1772676935090,1.0541911,2134.0,2133.4,8.49705903]
[1772676935392,1.0541911,2134.0,2133.2,8.49198687]
[1772676935992,7.88589493,2134.2,2133.2,8.49198687]
[1772676936384,6.847,2134.2,2133.2,8.49765164]
[1772676936589,0.82690053,2134.4,2133.3,8.49198687]
[1772676937184,16.20081167,2134.7,2133.3,8.49198687]
[1772676937386,0.81208195,2134.6,2133.3,8.49198687]
[1772676937691,0.79410727,2134.2,2133.3,8.49198687]
[1772676939595,0.76333641,2134.4,2133.3,8.49198687]
[1772676943398,0.74459565,2134.5,2133.3,8.49198687]
[1772676943797,0.74459565,2134.2,2133.3,8.49198687]
[1772676943995,0.74459565,2134.0,2133.3,8.49198687]
[1772676945695,0.74459565,2134.0,2132.4,3.88438092]
[1772676945696,0.74459565,2134.0,2133.1,8.49198687]
[1772676946697,0.74459565,2134.0,2133.1,8.49643018]
[1772676947096,0.74459565,2134.0,2133.1,0.00444331]
[1772676947402,0.65521322,2133.8,2133.1,0.00444331]
[1772676947602,0.65521322,2133.8,2132.3,8.49198687]
[1772676947805,0.63662714,2133.7,2132.3,8.49198687]
[1772676948096,0.63662714,2133.4,2132.3,8.49198687]
[1772676948501,0.61804636,2133.0,2132.1,8.49198687]
[1772676948699,0.63817574,2132.8,2131.3,8.49907428]
[1772676949704,0.61932426,2132.6,2131.3,8.49907428]
[1772676950199,0.56243869,2132.5,2131.3,8.49907428]
[1772676951497,7.39355681,2132.9,2131.3,8.49907428]
[1772676951697,2.66925786,2133.1,2131.5,8.49907428]
[1772676951698,7.40155681,2132.8,2131.5,8.49907428]
[1772676951900,0.52755681,2132.7,2131.5,8.49907428]
[1772676953506,0.47479386,2132.6,2131.5,8.49907428]
[1772676955306,0.38236554,2133.0,2131.5,8.49907428]
[1772676955506,0.38236554,2132.8,2131.5,8.49907428]
[1772676960711,6.72036554,2132.8,2131.5,8.49907428]
[1772676960911,0.28380966,2132.7,2131.5,8.49907428]
[1772676962412,6.338,2132.8,2131.5,8.49907428]
[1772676963512,6.879,2132.9,2131.2,0.23454]
[1772676963513,3.88889005,2133.2,2131.7,8.49907428]
[1772676963810,6.891,2133.1,2131.9,8.49907428]
[1772676964015,6.892,2133.3,2131.9,8.49907428]
[1772676964410,6.892,2133.3,2131.6,5.76879]
[1772676964411,6.892,2133.3,2132.1,8.49907428]
[1772676964613,3.9914727,2133.3,2132.3,8.49907428]
[1772676964820,6.893,2133.6,2132.3,8.49907428]
[1772676965712,8.63176384,2134.1,2132.9,8.49907428]
[1772676965915,15.52676384,2134.0,2132.9,8.503213]
[1772676966716,8.63176384,2133.9,2132.9,8.503213]
[1772676966917,6.895,2134.0,2132.9,8.503213]
[1772676967512,8.63176384,2133.9,2132.9,8.503213]
[1772676968918,6.895,2134.0,2132.9,8.503213]
[1772676968919,8.63176384,2133.7,2132.9,8.503213]
[1772676969409,8.63176384,2133.7,2132.4,8.49907428]
[1772676970011,0.00532191,2134.1,2132.8,8.49907428]
[1772676970315,0.00532191,2134.1,2133.0,8.49907428]
[1772676970913,8.63708575,2134.1,2133.0,8.49907428]
[1772676972316,0.00532191,2134.1,2133.0,8.49907428]
[1772676973326,8.63176384,2134.6,2133.2,8.49907428]
[1772676974323,8.63756578,2134.6,2133.4,8.49907428]
[1772676974918,8.63756578,2134.6,2133.5,8.49907428]
[1772676977729,8.63756578,2134.6,2133.6,8.49907428]
[1772676978929,0.00580194,2134.6,2133.6,8.49907428]
[1772676979130,8.75348784,2135.0,2133.8,8.53728115]
[1772676979823,9.06885666,2135.0,2133.8,8.53728115]
[1772676980024,9.07398304,2135.0,2133.8,8.53728115]
[1772676981724,8.75861422,2135.0,2133.8,8.53728115]
[1772676985133,8.75861422,2135.0,2133.7,7.50227]
[1772676985134,8.75861422,2135.0,2134.0,8.53728115]
[1772676985335,0.00512638,2135.0,2134.0,8.53728115]
[1772676985635,0.00512638,2135.0,2134.2,8.53728115]
[1772676985835,8.75861422,2135.0,2134.2,8.53728115]
[1772676986730,0.00512638,2135.0,2134.2,8.53728115]
[1772676987233,8.64939409,2135.0,2134.2,8.53728115]
[1772676987739,8.9723927,2135.4,2134.2,8.53728115]
[1772676987938,8.64426771,2135.3,2134.2,8.53728115]
[1772676988836,8.64863923,2135.3,2134.2,8.53728115]
[1772676989743,8.64426771,2134.8,2133.5,8.25910211]
[1772676990038,8.64426771,2134.6,2133.5,8.25910211]
[1772676991945,8.64426771,2134.4,2133.0,8.25910211]
[1772676992240,8.64426771,2134.2,2133.0,8.25910211]
[1772676996344,6.936,2134.3,2133.2,8.25910211]
[1772676996738,6.936,2134.3,2133.4,8.25910211]
[1772676998041,5.86993232,2134.9,2133.6,8.25910211]
[1772676998042,6.959,2134.8,2133.6,8.25910211]
[1772676998241,3.88889005,2135.1,2134.2,8.25910211]
[1772676998442,5.87430384,2135.3,2134.3,8.25910211]
[1772676998443,0.00437152,2135.3,2134.3,8.25910211]
[1772676998648,8.64426771,2135.1,2134.3,8.26435626]
[1772676999252,6.961,2135.2,2134.3,8.26435626]
[1772676999449,15.60526771,2135.2,2134.3,8.26435626]
[1772676999655,15.60926771,2135.1,2134.3,8.26435626]
[1772676999855,6.965,2135.1,2134.3,8.26435626]
[1772677000659,15.60926771,2135.1,2134.3,8.26435626]
[1772677000853,8.64426771,2135.0,2134.3,8.26435626]
[1772677003054,8.64426771,2134.7,2133.6,8.25910211]
[1772677003257,8.64426771,2134.5,2133.6,8.25910211]
[1772677003961,8.64426771,2134.4,2133.6,8.25910211]
[1772677004164,8.64426771,2134.4,2133.6,8.26430174]
[1772677005660,8.64426771,2134.4,2133.4,8.25910211]
[1772677005661,8.64426771,2134.1,2133.4,8.25910211]
[1772677005863,2.66670707,2134.2,2133.4,8.25910211]
[1772677005864,8.64426771,2134.2,2133.4,8.25910211]
[1772677006062,8.64426771,2134.1,2133.4,8.25910211]
[1772677006663,8.64426771,2134.1,2133.4,8.26323606]
[1772677007758,8.64426771,2133.9,2133.2,8.25910211]
[1772677007964,2.66670707,2134.0,2133.2,8.25910211]
[1772677007965,8.64426771,2133.7,2133.2,8.25910211]
[1772677008965,8.64768971,2133.7,2133.2,8.26239033]
[1772677009761,0.003422,2133.7,2133.2,8.26239033]
[1772677009962,7.02,2134.0,2133.2,8.26239033]
[1772677009963,15.69031314,2134.0,2133.2,8.26239033]
[1772677010155,8.67031314,2133.9,2133.2,8.26239033]
[1772677010959,8.67580384,2133.9,2133.2,8.26239033]
[1772677011166,8.67031314,2133.7,2133.0,8.2577231]
[1772677011361,15.70031314,2133.6,2133.0,8.2577231]
[1772677011662,8.67031314,2133.5,2133.0,8.2577231]
[1772677011860,7.03,2133.6,2133.0,8.2577231]
[1772677012165,7.03,2133.6,2133.0,8.2611451]
[1772677012365,15.70031314,2133.6,2133.0,8.2611451]
[1772677012562,8.67031314,2133.5,2133.0,0.003422]
[1772677012865,8.67031314,2133.4,2132.8,8.2577231]
[1772677014369,8.67031314,2133.4,2132.5,8.2577231]
[1772677018166,8.67031314,2133.2,2132.5,8.2577231]
[1772677018373,8.67031314,2133.1,2132.1,8.2577231]
[1772677021275,8.67031314,2132.9,2132.1,8.2577231]
[1772677021472,8.67031314,2132.7,2132.1,8.2577231]
[1772677022272,8.67031314,2132.7,2131.7,7.348]
[1772677022273,7.101,2132.8,2131.8,8.2577231]
[1772677022467,8.67031314,2132.7,2131.8,8.2577231]
[1772677024177,7.101,2132.8,2131.8,8.2577231]
[1772677024178,8.67031314,2132.5,2131.8,8.2577231]
[1772677024382,8.67031314,2132.3,2131.8,8.2577231]
[1772677024578,8.67422255,2132.3,2131.8,8.2577231]
[1772677024978,8.67422255,2132.3,2131.4,8.2577231]
[1772677025679,8.67031314,2132.2,2131.4,8.2577231]
[1772677026478,8.67031314,2132.2,2130.8,8.2577231]
[1772677026679,8.67031314,2131.9,2130.8,8.2577231]
[1772677026879,8.67031314,2131.7,2130.8,8.2577231]
[1772677027178,7.133,2131.8,2130.8,8.2577231]
[1772677027379,7.133,2131.8,2130.7,2.66670707]
[1772677027380,7.136,2132.1,2131.0,8.2577231]
[1772677027681,7.136,2132.1,2131.2,8.2577231]
[1772677028075,0.00390941,2132.3,2131.4,8.2577231]
[1772677028280,8.67031314,2132.8,2131.4,8.2577231]
[1772677028773,7.14,2132.9,2131.6,8.2577231]
[1772677028978,7.14,2132.9,2131.5,2.66670707]
[1772677028979,7.14,2132.9,2131.8,8.2577231]
[1772677029275,7.14375588,2132.9,2132.0,8.2577231]
[1772677032385,8.67031314,2132.8,2132.0,8.2577231]
[1772677033283,8.67031314,2132.8,2131.8,8.26163251]
[1772677035088,8.67031314,2132.8,2131.8,0.00390941]
[1772677035089,8.67031314,2132.5,2131.8,0.00390941]
[1772677035388,8.67031314,2132.3,2131.4,8.2577231]
[1772677036086,8.67031314,2132.2,2131.4,8.2577231]
[1772677037294,8.67031314,2132.2,2131.2,8.2577231]
[1772677037492,8.67031314,2131.9,2131.2,8.2577231]
[1772677037690,8.67031314,2131.8,2131.2,8.2577231]
[1772677041189,8.82255505,2132.0,2131.2,8.2577231]
[1772677041393,7.197,2131.9,2131.2,8.2577231]
[1772677041594,7.197,2132.1,2131.2,8.2577231]
[1772677042296,16.01955505,2132.1,2131.2,15.6527231]
[1772677042599,16.01955505,2132.1,2131.3,8.59450092]
[1772677043199,16.01955505,2132.1,2131.3,8.82903092]
[1772677043399,7.197,2132.1,2131.3,8.82903092]
[1772677045102,3.88889005,2132.6,2131.3,8.82903092]
[1772677045298,8.82255505,2132.7,2131.8,8.59450092]
[1772677045498,8.82255505,2132.7,2131.9,8.59450092]
[1772677045698,8.82255505,2132.8,2131.9,8.59450092]
[1772677049294,11.48926212,2132.8,2131.9,8.59450092]
[1772677049505,8.47278147,2132.7,2131.9,8.59450092]
[1772677049904,8.47278147,2132.7,2131.7,8.31390401]
[1772677050300,8.47278147,2132.4,2131.5,8.31390401]
[1772677050500,8.47278147,2132.1,2131.4,8.31390401]
[1772677051305,8.47278147,2132.1,2131.1,8.31390401]
[1772677052201,8.47278147,2132.0,2131.1,8.31390401]
[1772677052399,8.47278147,2131.8,2131.1,8.31390401]
[1772677052800,8.47278147,2131.8,2130.8,8.31390401]
[1772677059106,8.47278147,2131.7,2130.8,8.31390401]
[1772677059302,8.47278147,2131.7,2130.4,8.31390401]
[1772677059909,8.47278147,2131.5,2130.4,8.31390401]
[1772677060209,8.47278147,2131.3,2130.4,8.31390401]
[1772677060409,8.47822812,2131.3,2130.4,8.31390401]
[1772677061008,8.47278147,2131.2,2130.4,8.31390401]
[1772677062106,0.00544665,2131.3,2130.4,8.31390401]
[1772677062307,8.47822812,2131.3,2130.4,8.31390401]
[1772677063911,8.47822812,2131.3,2130.0,8.31390401]
[1772677064108,8.47822812,2131.3,2129.8,8.31390401]
[1772677064109,8.47278147,2130.8,2129.8,8.31390401]
[1772677064410,8.47278147,2130.6,2129.8,8.31390401]
[1772677066009,7.329,2130.7,2129.8,8.31390401]
[1772677066010,7.34,2130.7,2129.8,8.31390401]
[1772677066208,7.34,2130.7,2130.0,8.31390401]
[1772677066407,15.81278147,2130.7,2130.0,8.31390401]
[1772677066811,8.47278147,2130.6,2130.0,8.31390401]
[1772677067212,7.34,2130.7,2130.0,8.31390401]
[1772677067514,15.81278147,2130.7,2130.0,8.31390401]
[1772677068815,8.70716288,2130.6,2130.0,8.31390401]
[1772677074315,8.70716288,2130.6,2129.9,8.33911393]
[1772677077511,8.70716288,2130.6,2129.9,8.10442393]
[1772677078518,7.34,2130.7,2129.9,8.10442393]
[1772677078811,16.04716288,2130.7,2129.9,8.10442393]
[1772677079018,8.70716288,2130.6,2129.9,8.10442393]
[1772677082212,7.34,2130.7,2130.3,8.10442393]
[1772677082419,7.429,2131.0,2130.3,8.10442393]
[1772677083017,8.70716288,2130.9,2130.1,8.10442393]
[1772677084022,8.70716288,2130.9,2129.8,8.10442393]
[1772677088828,8.70716288,2130.8,2129.8,8.10442393]
[1772677089326,8.70716288,2130.7,2129.8,8.10442393]
[1772677089527,8.70716288,2130.5,2129.8,8.10442393]
[1772677089726,7.464,2130.6,2129.8,8.10442393]
[1772677089928,16.17116288,2130.6,2129.8,8.10442393]
[1772677090322,8.70716288,2130.5,2129.8,8.10442393]
[1772677092918,11.35289005,2130.6,2129.8,8.10442393]
[1772677093121,8.70716288,2130.5,2129.8,8.10442393]
[1772677094024,8.70716288,2130.4,2129.6,8.10442393]
[1772677094329,8.70716288,2130.3,2129.6,8.10442393]
[1772677094527,8.70716288,2130.1,2129.6,8.10442393]
[1772677094723,8.70716288,2130.1,2129.3,3.88438092]
[1772677094928,8.70716288,2129.8,2129.0,8.10442393]
[1772677095129,8.70716288,2129.6,2129.0,8.10442393]
[1772677095922,8.70716288,2129.6,2128.8,11.41838092]
[1772677095923,8.70716288,2129.6,2128.8,15.64342393]
[1772677096123,8.70716288,2129.6,2128.9,8.10442393]
[1772677099727,8.70716288,2129.6,2128.5,15.40398602]
[1772677099933,8.52107759,2129.4,2128.6,7.84998602]
[1772677100134,8.52107759,2129.2,2128.6,7.84998602]
[1772677100433,8.52107759,2129.2,2128.1,0.23488]
[1772677100638,0.41153062,2129.1,2128.2,7.84998602]
[1772677100932,8.93260821,2129.0,2128.2,7.84998602]
[1772677101137,8.52107759,2128.8,2128.2,7.84998602]
[1772677101341,8.52107759,2128.8,2127.9,7.84998602]
[1772677105245,8.52107759,2128.8,2127.7,7.576]
[1772677105246,16.05907759,2128.9,2128.1,7.84998602]
[1772677105437,7.538,2128.9,2128.3,7.84998602]
[1772677105636,8.52107759,2129.1,2128.3,7.84998602]
[1772677105941,16.09107759,2129.1,2128.3,7.84998602]
[1772677106834,8.52107759,2129.1,2128.3,7.84998602]
[1772677107032,7.577,2129.3,2128.3,7.84998602]
[1772677107236,7.578,2129.3,2128.5,7.8243454]
[1772677107438,15.95618381,2129.3,2128.5,7.8243454]
[1772677109646,8.37818381,2129.2,2128.5,7.8243454]
[1772677110250,7.593,2129.3,2128.5,7.8243454]
[1772677110543,8.37818381,2129.2,2128.5,7.8243454]
[1772677113651,8.37818381,2129.4,2128.7,6.34649583]
[1772677114051,7.61,2129.5,2128.7,6.34649583]
[1772677114248,8.37818381,2129.4,2128.7,6.34649583]
[1772677119452,8.37818381,2129.4,2128.6,7.84683]
[1772677119453,8.37818381,2129.4,2128.5,6.14136176]
[1772677119758,8.37818381,2129.4,2128.3,6.14136176]
[1772677121363,8.37818381,2129.2,2128.1,6.2713049]
[1772677121563,8.37818381,2129.0,2128.1,6.2713049]
[1772677122059,16.02018381,2129.1,2128.1,6.2713049]
[1772677123365,8.37818381,2129.3,2128.7,5.86180544]
[1772677124764,8.37818381,2129.3,2128.9,5.8033373]
[1772677128561,7.81529291,2129.3,2128.8,5.90656882]
[1772677131369,7.81529291,2129.3,2128.5,5.5484601]
[1772677131967,7.693,2129.4,2128.7,5.53066348]
[1772677132169,15.50829291,2129.4,2128.7,5.53066348]
[1772677132868,7.81529291,2129.3,2128.7,5.53066348]
[1772677140472,11.75249863,2129.7,2128.9,5.18258185]
[1772677140672,0.40661644,2129.6,2128.9,5.18258185]
[1772677140977,7.8188231,2129.8,2129.3,5.18258185]
[1772677141474,15.56729291,2129.9,2129.3,5.18258185]
[1772677142381,15.57063969,2129.9,2129.3,5.18611204]
[1772677143580,7.81529291,2130.1,2129.5,5.09994492]
[1772677144078,7.81529291,2130.2,2129.7,5.09994492]
[1772677144678,7.82086787,2130.2,2129.7,5.09994492]
[1772677145083,7.82086787,2130.2,2129.6,5.30386639]
[1772677145380,7.82086787,2130.2,2129.3,0.00353019]